fUST/lending_fUST_20251006
["ID","MTS","AMOUNT","RATE_DAILY","PERIOD"]
[389511647,1759689062011,-500.0,0.00018082,2]
[389511648,1759689062020,-500.0,0.00018082,2]
[389511649,1759689062031,-1072.17,0.00018082,2]
[389511650,1759689062040,-500.0,0.00018082,2]
[389511651,1759689062050,-710.73,0.00018082,2]
[389511652,1759689062060,-539.36,0.00018082,2]
[389511653,1759689062071,-525.38,0.00018082,2]
[389511654,1759689062080,-1398.76,0.00018082,2]
[389511655,1759689062089,-1035.99,0.00018082,2]
[389511656,1759689062098,-500.0,0.00018082,2]
[389511657,1759689062108,-500.0,0.00018082,2]
[389511658,1759689062118,-3042.18,0.00018082,2]
[389511659,1759689062127,-2002.11,0.00018082,2]
[389511660,1759689062136,-500.0,0.00018082,2]
[389511661,1759689062146,-3386.7,0.00018082,2]
[389511662,1759689062155,-550.25144794,0.00018082,2]
[389511663,1759689062164,-2103.1,0.00018082,2]
[389511664,1759689062174,-4820.21,0.00018082,2]
[389511665,1759689062185,-6284.43,0.00018082,2]
[389511666,1759689062198,-973.67,0.00018082,2]
[389511667,1759689062207,-729.48,0.00018082,2]
[389511668,1759689062216,-500.0,0.00018082,2]
[389511669,1759689062226,-1292.33,0.00018082,2]
[389511670,1759689062235,-1212.35,0.00018082,2]
[389511671,1759689062244,-500.0,0.00018082,2]
[389511672,1759689062253,-536.91,0.00018082,2]
[389511673,1759689062263,-631.87,0.00018082,2]
[389511674,1759689062272,-402.38449506,0.00018082,2]
[389511675,1759689062281,-580.24,0.00018082,2]
[389511676,1759689062290,-635.4,0.00018082,2]
[389511677,1759689062300,-500.0,0.00018082,2]
[389511678,1759689062309,-1306.97,0.00018082,2]
[389511679,1759689062318,-3083.19,0.00018082,2]
[389511680,1759689062327,-500.0,0.00018082,2]
[389511681,1759689062337,-1026.88,0.00018082,2]
[389511682,1759689062346,-2194.45,0.00018082,2]
[389511683,1759689062360,-500.0,0.00018082,2]
[389511684,1759689062371,-1267.61,0.00018082,2]
[389511685,1759689062381,-2062.38,0.00018082,2]
[389511686,1759689062390,-500.0,0.00018082,2]
[389511687,1759689062401,-500.0,0.00018082,2]
[389511688,1759689062411,-562.16,0.00018082,2]
[389511689,1759689062420,-4433.26,0.00018082,2]
[389511690,1759689062430,-3569.42,0.00018082,2]
[389511691,1759689062443,-1305.26,0.00018082,2]
[389511692,1759689062452,-4629.9,0.00018082,2]
[389511693,1759689062461,-550.36,0.00018082,2]
[389511694,1759689062471,-1068.91,0.00018082,2]
[389511695,1759689062480,-634.62,0.00018082,2]
[389511696,1759689062490,-500.0,0.00018082,2]
[389511697,1759689062500,-500.0,0.00018082,2]
[389511698,1759689062509,-1079.72,0.00018082,2]
[389511699,1759689062518,-1008.94,0.00018082,2]
[389511700,1759689062527,-740.14,0.00018082,2]
[389511701,1759689062536,-717.46,0.00018082,2]
[389511702,1759689062546,-1365.79,0.00018082,2]
[389511703,1759689062556,-3616.59,0.00018082,2]
[389511704,1759689062566,-848.78,0.00018082,2]
[389511705,1759689062574,-500.0,0.00018082,2]
[389511706,1759689062584,-3922.43,0.00018082,2]
[389511707,1759689062594,-2838.25,0.00018082,2]
[389511708,1759689062603,-923.11,0.00018082,2]
[389511709,1759689062614,-2055.86,0.00018082,2]
[389511710,1759689062624,-500.0,0.00018082,2]
[389511711,1759689062633,-609.62,0.00018082,2]
[389511712,1759689062643,-1609.34,0.00018082,2]
[389511713,1759689062654,-1684.32,0.00018082,2]
[389511714,1759689062664,-500.0,0.00018082,2]
[389511715,1759689062675,-1707.15,0.00018082,2]
[389511716,1759689062684,-500.0,0.00018082,2]
[389511717,1759689062694,-983.2,0.00018082,2]
[389511718,1759689062704,-2659.2,0.00018082,2]
[389511719,1759689062714,-621.66,0.00018082,2]
[389511720,1759689062723,-639.69,0.00018082,2]
[389511721,1759689062735,-500.0,0.00018082,2]
[389511722,1759689062745,-4527.15,0.00018082,2]
[389511723,1759689062754,-762.6,0.00018082,2]
[389511724,1759689062763,-500.0,0.00018082,2]
[389511725,1759689062772,-500.0,0.00018082,2]
[389511726,1759689062782,-675.38,0.00018082,2]
[389511727,1759689062791,-500.0,0.00018082,2]
[389511728,1759689062800,-1616.68,0.00018082,2]
[389511729,1759689062809,-500.0,0.00018082,2]
[389511730,1759689062818,-500.0,0.00018082,2]
[389511731,1759689062827,-2024.41,0.00018082,2]
[389511732,1759689062837,-500.0,0.00018082,2]
[389511733,1759689062846,-523.76,0.00018082,2]
[389511734,1759689062856,-500.0,0.00018082,2]
[389511735,1759689062867,-721.64,0.00018082,2]
[389511736,1759689062876,-500.0,0.00018082,2]
[389511737,1759689062886,-511.05,0.00018082,2]
[389511738,1759689062896,-891.94,0.00018082,2]
[389511739,1759689062905,-1736.69,0.00018082,2]
[389511740,1759689062915,-500.0,0.00018082,2]
[389511741,1759689062924,-681.25,0.00018082,2]
[389511742,1759689062935,-772.36,0.00018082,2]
[389511743,1759689062945,-2634.38,0.00018082,2]
[389511744,1759689062954,-6557.05,0.00018082,2]
[389511745,1759689062964,-1112.79,0.00018082,2]
[389511746,1759689062974,-2126.8,0.00018082,2]
[389511747,1759689062983,-500.0,0.00018082,2]
[389511748,1759689062993,-2286.45,0.00018082,2]
[389511749,1759689063005,-2130.5,0.00018082,2]
[389511750,1759689063015,-802.42,0.00018082,2]
[389511751,1759689063024,-6687.93,0.00018082,2]
[389511752,1759689063033,-1079.59,0.00018082,2]
[389511753,1759689063042,-505.54,0.00018128,2]
[389511754,1759689063051,-158.2238115,0.00018128,2]
[389511755,1759689063061,-1891.1609875,0.0001813,2]
[389511756,1759689063070,-168.3888056,0.00018151,2]
[389511757,1759689063079,-396.0,0.00018155,2]
[389511758,1759689063089,-151.0,0.00018155,2]
[389511759,1759689063098,-151.0,0.00018155,2]
[389511760,1759689063108,-167.83565487,0.00018194,2]
[389511761,1759689063119,-500.0,0.00018224,2]
[389511762,1759689063128,-506.72466247,0.00018224,2]
[389511763,1759689063137,-1000.0,0.00018224,2]
[389511764,1759689063146,-560.78338102,0.00018224,2]
[389511765,1759689063155,-1000.0,0.00018224,2]
[389511766,1759689063165,-1000.0,0.00018224,2]
[389511767,1759689063174,-1462.69837622,0.00018233,2]
[389511768,1759689063183,-396.0,0.0001827,2]
[389511769,1759689063193,-484.97126142,0.00018278,2]
[389511770,1759689063202,-1406.06007539,0.00018278,2]
[389511771,1759689063211,-1440.29413678,0.00018278,2]
[389511772,1759689063220,-1000.0,0.00018278,2]
[389511773,1759689063229,-1007.99579716,0.00018278,2]
[389511774,1759689063238,-1500.0,0.00018278,2]
[389511775,1759689063247,-246.48150504,0.00018278,2]
[389511776,1759689063257,-153.0,0.00018339,2]
[389511777,1759689063267,-500.0,0.00018356,2]
[389511778,1759689063276,-500.0,0.00018356,2]
[389511779,1759689063286,-1732.0,0.00018356,2]
[389511780,1759689063441,-237.93422252,0.00018356,2]
[389511781,1759689063451,-500.0,0.00018356,2]
[389511782,1759689063461,-500.0,0.00018356,2]
[389511783,1759689063471,-1293.03,0.00018356,2]
[389511784,1759689063480,-500.0,0.00018356,2]
[389511785,1759689063490,-500.0,0.00018356,2]
[389511786,1759689063499,-500.0,0.00018356,2]
[389511787,1759689063508,-500.0,0.00018356,2]
[389511788,1759689063517,-555.18,0.00018356,2]
[389511789,1759689063526,-500.0,0.00018356,2]
[389511790,1759689063534,-500.0,0.00018356,2]
[389511791,1759689063543,-500.0,0.00018356,2]
[389511792,1759689063552,-595.33,0.00018356,2]
[389511793,1759689063561,-151.0,0.00018356,2]
[389511794,1759689063571,-500.0,0.00018356,2]
[389511795,1759689063580,-500.0,0.00018356,2]
[389511796,1759689063589,-1376.15,0.00018356,2]
[389511797,1759689063599,-642.37,0.00018356,2]
[389511798,1759689063608,-956.68,0.00018356,2]
[389511799,1759689063618,-500.0,0.00018356,2]
[389511800,1759689063627,-568.39,0.00018356,2]
[389511801,1759689063636,-500.0,0.00018356,2]
[389511802,1759689063645,-500.0,0.00018356,2]
[389511803,1759689063654,-698.89,0.00018356,2]
[389511804,1759689063663,-500.0,0.00018356,2]
[389511805,1759689063672,-500.0,0.00018356,2]
[389511806,1759689063682,-629.32559894,0.00018356,2]
[389511807,1759689063691,-2265.52,0.00018356,2]
[389511808,1759689063700,-643.01,0.00018356,2]
[389511809,1759689063709,-500.0,0.00018356,2]
[389511810,1759689063718,-1393.99,0.00018356,2]
[389511811,1759689063727,-500.05,0.00018356,2]
[389511812,1759689063736,-1317.15,0.00018356,2]
[389511813,1759689063746,-500.0,0.00018356,2]
[389511814,1759689063755,-763.35,0.00018356,2]
[389511815,1759689063764,-500.0,0.00018356,2]
[389511816,1759689063773,-546.92,0.00018356,2]
[389511817,1759689063783,-500.0,0.00018356,2]
[389511818,1759689063791,-675.29,0.00018356,2]
[389511819,1759689063801,-852.17,0.00018356,2]
[389511820,1759689063810,-500.0,0.00018356,2]
[389511821,1759689063820,-2432.63,0.00018356,2]
[389511822,1759689063829,-809.72,0.00018356,2]
[389511823,1759689063838,-1268.73,0.00018356,2]
[389511824,1759689063848,-826.51,0.00018356,2]
[389511825,1759689063858,-824.29,0.00018356,2]
[389511826,1759689063867,-974.64,0.00018356,2]
[389511827,1759689063877,-983.67,0.00018356,2]
[389511828,1759689063886,-500.0,0.00018356,2]
[389511829,1759689063898,-533.34,0.00018356,2]
[389511830,1759689063907,-500.0,0.00018356,2]
[389511831,1759689063918,-709.8,0.00018356,2]
[389511832,1759689063927,-1377.69,0.00018356,2]
[389511833,1759689063936,-500.0,0.00018356,2]
[389511834,1759689063945,-327.38402587,0.00018356,2]
[389511835,1759689063954,-500.0,0.00018356,2]
[389511836,1759689063964,-500.0,0.00018356,2]
[389511837,1759689063973,-198.04609324,0.00018356,2]
[389511838,1759689063983,-500.0,0.00018356,2]
[389511839,1759689063993,-500.0,0.00018356,2]
[389511840,1759689064002,-581.49,0.00018356,2]
[389511841,1759689064012,-542.65,0.00018356,2]
[389511842,1759689064023,-151.0,0.00018356,2]
[389511843,1759689064033,-500.0,0.00018356,2]
[389511844,1759689064043,-2208.57,0.00018356,2]
[389511845,1759689064053,-500.0,0.00018356,2]
[389511846,1759689064063,-356.71982264,0.00018356,2]
[389511847,1759689064072,-543.1,0.00018356,2]
[389511848,1759689064083,-500.0,0.00018356,2]
[389511849,1759689064093,-211.342356,0.00018356,2]
[389511850,1759689064103,-500.0,0.00018356,2]
[389511851,1759689064114,-832.87,0.00018356,2]
[389511852,1759689064123,-1123.52,0.00018356,2]
[389511853,1759689064133,-585.0,0.00018356,2]
[389511854,1759689064143,-778.06,0.00018356,2]
[389511855,1759689064152,-204.457149,0.00018356,2]
[389511856,1759689064162,-500.0,0.00018356,2]
[389511857,1759689064171,-539.79,0.00018356,2]
[389511858,1759689064180,-585.63,0.00018356,2]
[389511859,1759689064189,-695.12,0.00018356,2]
[389511860,1759689064199,-879.04,0.00018356,2]
[389511861,1759689064209,-883.86990635,0.00018356,2]
[389511862,1759689064219,-3531.94414578,0.00018356,2]
[389511863,1759689064229,-944.64,0.00018356,2]
[389511864,1759689064238,-1951.78,0.00018356,2]
[389511865,1759689064249,-500.0,0.00018356,2]
[389511866,1759689064258,-1643.6,0.00018356,2]
[389511867,1759689064268,-500.0,0.00018356,2]
[389511868,1759689064277,-151.0,0.00018356,2]
[389511869,1759689064288,-367.44376173,0.00018356,2]
[389511870,1759689064298,-1072.17,0.00018356,2]
[389511871,1759689064309,-500.0,0.00018356,2]
[389511872,1759689064319,-710.73,0.00018356,2]
[389511873,1759689064328,-151.0,0.00018356,2]
[389511874,1759689064338,-539.36,0.00018356,2]
[389511875,1759689064347,-525.38,0.00018356,2]
[389511876,1759689064359,-151.0,0.00018356,2]
[389511877,1759689064370,-1398.76,0.00018356,2]
[389511878,1759689064379,-1035.99,0.00018356,2]
[389511879,1759689064389,-3042.18,0.00018356,2]
[389511880,1759689064399,-2002.11,0.00018356,2]
[389511881,1759689064408,-3386.7,0.00018356,2]
[389511882,1759689064418,-2103.1,0.00018356,2]
[389511883,1759689064427,-4820.21,0.00018356,2]
[389511884,1759689064439,-6284.43,0.00018356,2]
[389511885,1759689064448,-973.67,0.00018356,2]
[389511886,1759689064458,-729.48,0.00018356,2]
[389511887,1759689064467,-1292.33,0.00018356,2]
[389511888,1759689064477,-1212.35,0.00018356,2]
[389511889,1759689064488,-274.596,0.00018356,2]
[389511890,1759689064497,-500.0,0.00018356,2]
[389511891,1759689064507,-536.91,0.00018356,2]
[389511892,1759689064516,-631.87,0.00018356,2]
[389511893,1759689064526,-580.24,0.00018356,2]
[389511894,1759689064535,-635.4,0.00018356,2]
[389511895,1759689064544,-500.0,0.00018356,2]
[389511896,1759689064554,-1306.97,0.00018356,2]
[389511897,1759689064563,-3083.19,0.00018356,2]
[389511898,1759689064572,-484.64798756,0.00018356,2]
[389511899,1759689064582,-1026.88,0.00018356,2]
[389511900,1759689064591,-2194.45,0.00018356,2]
[389511901,1759689064601,-1267.61,0.00018356,2]
[389511902,1759689064611,-500.0,0.00018356,2]
[389511903,1759689064621,-2062.38,0.00018356,2]
[389511904,1759689064630,-500.0,0.00018356,2]
[389511905,1759689064639,-500.0,0.00018356,2]
[389511906,1759689064649,-562.16,0.00018356,2]
[389511907,1759689064658,-4433.26,0.00018356,2]
[389511908,1759689064667,-3569.42,0.00018356,2]
[389511909,1759689064676,-1305.26,0.00018356,2]
[389511910,1759689064686,-4629.9,0.00018356,2]
[389511911,1759689064695,-550.36,0.00018356,2]
[389511912,1759689064705,-1068.91,0.00018356,2]
[389511913,1759689064714,-634.62,0.00018356,2]
[389511914,1759689064724,-500.0,0.00018356,2]
[389511915,1759689064733,-500.0,0.00018356,2]
[389511916,1759689064742,-1079.72,0.00018356,2]
[389511917,1759689064751,-1008.94,0.00018356,2]
[389511918,1759689064760,-740.14,0.00018356,2]
[389511919,1759689064770,-717.46,0.00018356,2]
[389511920,1759689064778,-1365.79,0.00018356,2]
[389511921,1759689064788,-3616.59,0.00018356,2]
[389511922,1759689064797,-848.78,0.00018356,2]
[389511923,1759689064809,-500.0,0.00018356,2]
[389511924,1759689064824,-3922.43,0.00018356,2]
[389511925,1759689064839,-2838.25,0.00018356,2]
[389511926,1759689064852,-923.11,0.00018356,2]
[389511927,1759689064867,-2055.86,0.00018356,2]
[389511928,1759689064880,-500.0,0.00018356,2]
[389511929,1759689064897,-157.55132763,0.00018356,2]
[389511930,1759689064911,-609.62,0.00018356,2]
[389511931,1759689064925,-1609.34,0.00018356,2]
[389511932,1759689064941,-1684.32,0.00018356,2]
[389511933,1759689064954,-500.0,0.00018356,2]
[389511934,1759689064966,-1707.15,0.00018356,2]
[389511935,1759689064979,-500.0,0.00018356,2]
[389511936,1759689065008,-983.2,0.00018356,2]
[389511937,1759689065025,-2659.2,0.00018356,2]
[389511938,1759689065037,-621.66,0.00018356,2]
[389511939,1759689065052,-639.69,0.00018356,2]
[389511940,1759689065069,-328.97343637,0.00018356,2]
[389511941,1759689065086,-4527.15,0.00018356,2]
[389511942,1759689065107,-762.6,0.00018356,2]
[389511943,1759689065125,-500.0,0.00018356,2]
[389511944,1759689065144,-500.0,0.00018356,2]
[389511945,1759689065157,-675.38,0.00018356,2]
[389511946,1759689065168,-500.0,0.00018356,2]
[389511947,1759689065180,-1616.68,0.00018356,2]
[389511948,1759689065196,-500.0,0.00018356,2]
[389511949,1759689065213,-500.0,0.00018356,2]
[389511950,1759689065224,-2024.41,0.00018356,2]
[389511951,1759689065239,-500.0,0.00018356,2]
[389511952,1759689065256,-523.76,0.00018356,2]
[389511953,1759689065268,-721.64,0.00018356,2]
[389511954,1759689065280,-500.0,0.00018356,2]
[389511955,1759689065295,-500.0,0.00018356,2]
[389511956,1759689065308,-511.05,0.00018356,2]
[389511957,1759689065322,-891.94,0.00018356,2]
[389511958,1759689065337,-1736.69,0.00018356,2]
[389511959,1759689065350,-500.0,0.00018356,2]
[389511960,1759689065364,-681.25,0.00018356,2]
[389511961,1759689065380,-772.36,0.00018356,2]
[389511962,1759689065394,-2634.38,0.00018356,2]
[389511963,1759689065408,-6557.05,0.00018356,2]
[389511964,1759689065422,-1112.79,0.00018356,2]
[389511965,1759689065437,-2126.8,0.00018356,2]
[389511966,1759689065450,-500.0,0.00018356,2]
[389511967,1759689065463,-2286.45,0.00018356,2]
[389511968,1759689065475,-2130.5,0.00018356,2]
[389511969,1759689065491,-802.42,0.00018356,2]
[389511970,1759689065505,-6687.93,0.00018356,2]
[389511971,1759689065519,-1079.59,0.00018356,2]
[389511972,1759689065531,-151.0,0.00018389,2]
[389511973,1759689065544,-229.12188916,0.00018389,2]
[389511974,1759689065562,-160.0,0.000184,2]
[389511975,1759689065577,-396.0,0.00018403,2]
[389511976,1759689065593,-151.0,0.00018418,2]
[389511977,1759689065608,-20746.26328358,0.00018426,2]
[389511978,1759689065622,-420.0,0.00018427,2]
[389511979,1759689065637,-151.0,0.00018431,2]
[389511980,1759689065651,-160.0,0.00018436,2]
[389511981,1759689065666,-533.57524315,0.00018436,2]
[389511982,1759689065680,-234.13847417,0.00018436,2]
[389511983,1759689065693,-293.57808533,0.00018436,2]
[389511984,1759689065705,-160.0,0.00018436,2]
[389511985,1759689065719,-160.0,0.00018436,2]
[389511986,1759689065733,-720.0,0.00018442,2]
[389511987,1759689065746,-998.209,0.00018444,2]
[389511988,1759689065758,-630.0,0.00018444,2]
[389511989,1759689065771,-2158.0,0.00018444,2]
[389511990,1759689065784,-410.0,0.00018444,2]
[389511991,1759689065797,-433.472,0.00018444,2]
[389511992,1759689065808,-5888.0,0.0001845,2]
[389511993,1759689065821,-3523.5439865,0.00018454,2]
[389511994,1759689065833,-4020.556145,0.00018454,2]
[389511995,1759689065846,-16268.5701776,0.00018454,2]
[389511996,1759689065859,-157.0,0.00018467,2]
[389511997,1759689065873,-157.0,0.00018467,2]
[389511998,1759689065885,-157.0,0.00018467,2]
[389511999,1759689065897,-157.0,0.00018467,2]
[389512000,1759689065910,-154.79684504,0.00018467,2]
[389512001,1759689065922,-151.0,0.00018489,2]
[389512002,1759689065934,-151.0,0.00018489,2]
[389512003,1759689065947,-151.0,0.00018489,2]
[389512004,1759689065959,-151.0,0.00018489,2]
[389512005,1759689065973,-200.0,0.00018499,2]
[389512006,1759689065985,-163.04405493,0.000185,2]
[389512007,1759689065998,-166.0,0.000185,2]
[389512008,1759689066011,-172.0,0.000185,2]
[389512009,1759689066023,-166.0,0.000185,2]
[389512010,1759689066036,-166.0,0.000185,2]
[389512011,1759689066050,-166.0,0.000185,2]
[389512012,1759689066062,-166.0,0.000185,2]
[389512013,1759689066074,-273844.13846161,0.000185,2]
[389512014,1759689066410,-671.11230137,0.000185,2]
[389512015,1759689066422,-1902.47090782,0.000185,2]
[389512016,1759689067260,-500.0,0.00016438,2]
[389512017,1759689067270,-247.12916699,0.00016438,2]
[389512018,1759689067281,-252.87083301,0.00016438,2]
[389512019,1759689067291,-186.39041725,0.00016438,2]
[389512020,1759689067302,-313.60958275,0.00016438,2]
[389512021,1759689067312,-500.0,0.00016438,2]
[389512022,1759689067321,-236.12915699,0.00016712,2]
[389512023,1759689067335,-263.87084301,0.00016712,2]
[389512024,1759689067344,-500.0,0.00016712,2]
[389512025,1759689067353,-500.0,0.00016712,2]
[389512026,1759689067363,-3954.040906,0.00016986,2]
[389512027,1759689067373,-500.0,0.00016986,2]
[389512028,1759689067384,-500.0,0.00016986,2]
[389512029,1759689067394,-3954.040906,0.00016986,2]
[389512030,1759689067403,-500.0,0.00016986,2]
[389512031,1759689067412,-3954.040906,0.00016986,2]
[389512032,1759689067422,-3954.040906,0.00017,2]
[389512033,1759689067431,-3954.040906,0.00017,2]
[389512034,1759689067441,-500.0,0.0001726,2]
[389512035,1759689067450,-500.0,0.0001726,2]
[389512036,1759689067459,-500.0,0.0001726,2]
[389512037,1759689067469,-3954.040906,0.00017415,2]
[389512038,1759689067478,-583.99604113,0.00017415,2]
[389512039,1759689067646,-642.19313161,0.00016986,2]
[389512040,1759689067657,-3311.84777439,0.00016986,2]
[389512041,1759689067667,-742.54547862,0.00017,2]
[389512042,1759689067877,-2153.80883627,0.00017,2]
[389512053,1759689121595,153.707053,0.00019503,10]
[389512054,1759689131461,289.439529,0.00015863,2]
[389512056,1759689312831,300.0,0.000159,2]
[389512057,1759689322928,300.0,0.000159,2]
[389512058,1759689333459,300.0,0.000159,2]
[389512059,1759689344276,300.0,0.000159,2]
[389512060,1759689354545,300.0,0.000159,2]
[389512066,1759689455469,1800.0,0.00015949,2]
[389512067,1759689463585,1800.0,0.00015949,2]
[389512068,1759689486638,179.05035782,0.00015851,2]
[389512069,1759689509317,179.05035782,0.00015851,2]
[389512070,1759689531893,179.05035782,0.00015851,2]
[389512071,1759689554350,179.05035782,0.00015851,2]
[389512072,1759689575857,43296.0831853,0.00015453,2]
[389512073,1759689577199,479.05035782,0.00015851,2]
[389512074,1759689599156,479.05035782,0.00015851,2]
[389512075,1759689621325,479.05035782,0.00015851,2]
[389512076,1759689629163,58522.3978934,0.00015437,2]
[389512077,1759689643303,479.05035782,0.00015851,2]
[389512078,1759689665311,479.05035782,0.00015851,2]
[389512079,1759689681261,300.0,0.00015851,2]
[389512080,1759689689114,300.0,0.00015851,2]
[389512081,1759689704724,300.0,0.00015851,2]
[389512082,1759689712806,300.0,0.00015851,2]
[389512083,1759689717238,1489.5572014,0.00015431,2]
[389512084,1759689728426,300.0,0.00015851,2]
[389512085,1759689736153,300.0,0.00015851,2]
[389512086,1759689751453,300.0,0.00015851,2]
[389512087,1759689759272,300.0,0.00015851,2]
[389512088,1759689774554,300.0,0.00015851,2]
[389512089,1759689782201,300.0,0.00015851,2]
[389512090,1759689797312,300.0,0.00015851,2]
[389512091,1759689805327,300.0,0.00015851,2]
[389512092,1759689820718,300.0,0.00015851,2]
[389512093,1759689828476,300.0,0.00015851,2]
[389512094,1759689845651,300.0,0.00015851,2]
[389512095,1759689853468,300.0,0.00015851,2]
[389512096,1759689865129,613.01749274,0.00019877,10]
[389512097,1759689868608,300.0,0.00015851,2]
[389512098,1759689876475,300.0,0.00015851,2]
[389512100,1759689891674,300.0,0.00015851,2]
[389512101,1759689901384,500.0,0.00015939,2]
[389512102,1759689916528,238.0,0.00015851,2]
[389512103,1759689924263,300.0,0.00015851,2]
[389512104,1759689946646,300.0,0.00015851,2]
[389512105,1759689969543,300.0,0.00015851,2]
[389512106,1759689970288,1404.81,0.00016,2]
[389512108,1759689992380,300.0,0.00015851,2]
[389512109,1759690014713,300.0,0.00015851,2]
[389512110,1759690038613,300.0,0.00015851,2]
[389512111,1759690056889,460.051491,0.00015432,2]
[389512112,1759690061682,1000.0,0.000261,50]
[389512113,1759690182639,179.05035782,0.00016,2]
[389512142,1759690232712,-300.0,0.00016011,2]
[389512144,1759690232721,-500.0,0.000161,2]
[389512146,1759690232730,-324.0,0.00016411,2]
[389512148,1759690232739,-911.00000762,0.00016435,2]
[389512150,1759690232751,-288.99999238,0.00016435,2]
[389512152,1759690232760,-1200.0,0.00016436,2]
[389512154,1759690232769,-300.0,0.00016436,2]
[389512156,1759690232778,-174.5141881,0.00016437,2]
[389512158,1759690232786,-155.0,0.00016437,2]
[389512160,1759690232795,-256.13532164,0.00016437,2]
[389512162,1759690232805,-455.77610677,0.00016437,2]
[389512164,1759690232814,-500.0,0.00016438,2]
[389512167,1759690232828,-500.0,0.00016438,2]
[389512168,1759690232838,-500.0,0.00016438,2]
[389512170,1759690232847,-500.0,0.00016438,2]
[389512173,1759690232857,-500.0,0.00016438,2]
[389512175,1759690232866,-500.0,0.00016438,2]
[389512178,1759690232875,-500.0,0.00016438,2]
[389512179,1759690232885,-208.83061259,0.00016438,2]
[389512181,1759690232894,-500.0,0.00016438,2]
[389512184,1759690232904,-500.0,0.00016438,2]
[389512186,1759690232913,-500.0,0.00016438,2]
[389512187,1759690232922,-500.0,0.00016438,2]
[389512189,1759690232932,-500.0,0.00016438,2]
[389512191,1759690232941,-500.0,0.00016438,2]
[389512193,1759690232954,-608.2,0.00016438,2]
[389512195,1759690232963,-480.0,0.00016438,2]
[389512197,1759690232972,-500.0,0.00016438,2]
[389512199,1759690232982,-500.0,0.00016438,2]
[389512201,1759690232992,-770.32,0.00016438,2]
[389512203,1759690233001,-384.27590584,0.00016438,2]
[389512205,1759690233009,-571.98,0.00016438,2]
[389512207,1759690233019,-500.0,0.00016438,2]
[389512209,1759690233029,-500.0,0.00016438,2]
[389512211,1759690233038,-500.0,0.00016438,2]
[389512213,1759690233047,-500.0,0.00016438,2]
[389512215,1759690233056,-500.0,0.00016438,2]
[389512217,1759690233066,-48.91977785,0.00016438,2]
[389512219,1759690233082,-451.08022215,0.00016438,2]
[389512221,1759690233092,-480.0,0.00016438,2]
[389512223,1759690233101,-500.0,0.00016438,2]
[389512225,1759690233110,-1348.02,0.00016438,2]
[389512227,1759690233119,-500.0,0.00016438,2]
[389512229,1759690233128,-500.0,0.00016438,2]
[389512231,1759690233137,-500.0,0.00016438,2]
[389512233,1759690233146,-500.0,0.00016438,2]
[389512235,1759690233155,-725.89,0.00016438,2]
[389512237,1759690233164,-500.0,0.00016438,2]
[389512239,1759690233177,-500.0,0.00016438,2]
[389512241,1759690233187,-500.0,0.00016438,2]
[389512244,1759690233197,-500.0,0.00016438,2]